bitfinex/quotes_BTCUSD_20251012
["timestamp","ask_amount","ask_price","bid_price","bid_amount"]
[1760289494510,0.40357106,114620.0,114610.0,0.47817484]
[1760289495371,0.22908145,114620.0,114610.0,0.47817484]
[1760289498404,0.12981145,114620.0,114610.0,0.48779484]
[1760289498821,0.22908145,114620.0,114610.0,0.47817484]
[1760289499459,5.08538373,114620.0,114610.0,0.30367]
[1760289499674,5.07398806,114620.0,114610.0,0.30367]
[1760289500304,5.07398806,114620.0,114610.0,0.47817484]
[1760289500514,5.07398806,114620.0,114610.0,0.30367]
[1760289501360,5.1627074,114620.0,114610.0,0.30367]
[1760289501563,5.07398806,114620.0,114610.0,0.30367]
[1760289503893,5.07398806,114620.0,114610.0,0.55367]
[1760289504939,5.46298736,114620.0,114610.0,0.55367]
[1760289505160,5.48923925,114620.0,114610.0,0.45367]
[1760289505368,5.57795859,114620.0,114610.0,0.45367]
[1760289505575,5.60295858,114620.0,114610.0,0.45367]
[1760289505782,5.62643631,114620.0,114610.0,0.45367]
[1760289506128,5.60295858,114620.0,114610.0,0.45367]
[1760289506366,5.18496753,114580.0,114570.0,0.04192]
[1760289506574,5.24886829,114580.0,114570.0,0.04204979]
[1760289506776,0.73946129,114580.0,114570.0,0.04204979]
[1760289507060,5.40987829,114580.0,114570.0,0.21661555]
[1760289507273,0.46564076,114580.0,114570.0,0.21661555]
[1760289507505,0.46564076,114580.0,114570.0,0.41515555]
[1760289507506,0.34,114580.0,114570.0,0.41515555]
[1760289507719,0.04529,114600.0,114590.0,0.17453529]
[1760289507942,0.46094913,114600.0,114590.0,0.27490529]
[1760289508352,0.40313913,114600.0,114590.0,0.27490529]
[1760289508556,0.01784913,114600.0,114590.0,0.37307529]
[1760289508778,0.01784913,114600.0,114590.0,0.27490529]
[1760289510037,0.07187913,114600.0,114590.0,0.53669529]
[1760289510466,0.01884913,114600.0,114590.0,0.53669529]
[1760289510684,0.001,114600.0,114590.0,0.63462529]
[1760289511552,0.3876,114620.0,114610.0,0.17450484]
[1760289511758,0.46128776,114620.0,114610.0,0.20984484]
[1760289511965,0.12128776,114620.0,114610.0,0.27211484]
[1760289512165,0.46297113,114620.0,114610.0,0.27211484]
[1760289512341,0.12297113,114620.0,114610.0,0.27211484]
[1760289512486,0.46297113,114620.0,114610.0,0.27211484]
[1760289512694,0.46297113,114620.0,114610.0,0.27224463]
[1760289513390,0.46297113,114620.0,114610.0,0.20997463]
[1760289513749,0.46297113,114620.0,114610.0,0.27224463]
[1760289514362,0.46297113,114620.0,114610.0,0.31416463]
[1760289515684,0.35877113,114620.0,114610.0,0.31416463]
[1760289515861,0.46297113,114620.0,114610.0,0.25189463]
[1760289516066,0.46297113,114620.0,114610.0,0.31416463]
[1760289516319,0.46297113,114620.0,114610.0,0.04204979]
[1760289516320,0.66100733,114620.0,114610.0,0.04204979]
[1760289516589,0.75404733,114620.0,114610.0,0.04204979]
[1760289516770,0.63746074,114620.0,114610.0,0.21655463]
[1760289516944,0.73050074,114620.0,114610.0,0.21655463]
[1760289517123,0.55601113,114620.0,114610.0,0.21655463]
[1760289517297,0.73050074,114620.0,114610.0,0.21655463]
[1760289518351,0.73050074,114620.0,114610.0,0.22655463]
[1760289519271,0.55601113,114620.0,114610.0,0.22655463]
[1760289519501,0.73050074,114620.0,114610.0,0.22655463]
[1760289521715,0.35877113,114620.0,114610.0,0.38675463]
[1760289521926,0.00168337,114620.0,114610.0,0.64851463]
[1760289523210,0.00168337,114620.0,114610.0,0.64951463]
[1760289523643,0.00168337,114620.0,114610.0,0.64851463]
[1760289524060,0.00168337,114620.0,114610.0,0.64951463]
[1760289526007,0.00168337,114620.0,114610.0,1.19519329]
[1760289526224,0.00168337,114620.0,114610.0,0.64951463]
[1760289526904,0.00168337,114620.0,114610.0,1.31487471]
[1760289528270,1e-08,114620.0,114610.0,1.31487471]
[1760289530087,1e-08,114620.0,114610.0,0.76919605]
[1760289530836,1e-08,114620.0,114610.0,1.31487471]
[1760289531475,1e-08,114620.0,114610.0,0.75919605]
[1760289534508,1e-08,114620.0,114610.0,1.30487471]
[1760289536396,1e-08,114620.0,114610.0,0.75919605]
[1760289537981,1e-08,114620.0,114610.0,1.30487471]
[1760289541016,1e-08,114620.0,114610.0,0.75919605]
[1760289541223,1e-08,114620.0,114610.0,1.30487471]
[1760289542200,1e-08,114620.0,114610.0,0.75919605]
[1760289542408,1e-08,114620.0,114610.0,1.30487471]
[1760289543056,1e-08,114620.0,114610.0,0.63951463]
[1760289543471,0.06082001,114620.0,114610.0,0.36707979]
[1760289543678,0.12439777,114620.0,114610.0,0.54158463]
[1760289543883,0.07750777,114620.0,114610.0,0.54158463]
[1760289544123,0.12425777,114620.0,114610.0,0.54158463]
[1760289544308,0.12425777,114620.0,114610.0,0.54058463]
[1760289544517,0.12425777,114620.0,114610.0,0.54158463]
[1760289544950,0.01708777,114620.0,114610.0,0.63429463]
[1760289545431,0.01708777,114620.0,114610.0,0.63529463]
[1760289546144,0.01708777,114620.0,114610.0,0.54158463]
[1760289546342,0.01708777,114620.0,114610.0,0.63529463]
[1760289546541,0.01708777,114620.0,114610.0,0.54158463]
[1760289546765,0.01708777,114620.0,114610.0,0.63529463]
[1760289547516,0.01708777,114620.0,114610.0,0.30480979]
[1760289547517,0.79998478,114620.0,114610.0,0.30480979]
[1760289547727,0.79998478,114620.0,114610.0,0.26288979]
[1760289547728,5.47568006,114620.0,114610.0,0.26288979]
[1760289547939,5.50193159,114620.0,114610.0,0.26288979]
[1760289548379,5.44015463,114620.0,114610.0,0.26288979]
[1760289548583,5.44015463,114620.0,114610.0,0.26188979]
[1760289548995,5.47030653,114620.0,114610.0,0.26188979]
[1760289549439,5.49740553,114620.0,114610.0,0.26188979]
[1760289549666,5.59630651,114620.0,114610.0,1e-08]
[1760289549875,5.69403708,114620.0,114610.0,1e-08]
[1760289550082,5.71282736,114620.0,114610.0,1e-08]
[1760289550506,5.71382736,114620.0,114610.0,1e-08]
[1760289550976,5.66893808,114620.0,114610.0,1e-08]
[1760289551189,5.66793808,114620.0,114610.0,1e-08]
[1760289551392,5.66693808,114620.0,114610.0,1e-08]
[1760289551600,5.66893808,114620.0,114610.0,1e-08]
[1760289552075,5.69503708,114620.0,114610.0,1e-08]
[1760289556026,5.59503709,114620.0,114610.0,1e-08]
[1760289556229,5.69503708,114620.0,114610.0,1e-08]
[1760289557439,5.66893808,114620.0,114610.0,1e-08]
[1760289557785,5.5137862,114620.0,114610.0,1e-08]
[1760289558421,5.5439381,114620.0,114610.0,1e-08]
[1760289558646,5.5137862,114620.0,114610.0,1e-08]
[1760289559065,5.5439381,114620.0,114610.0,1e-08]
[1760289559706,5.5434381,114620.0,114610.0,1e-08]
[1760289562747,4.91007725,114620.0,114610.0,1e-08]
[1760289562947,5.08456686,114620.0,114610.0,0.17450485]
[1760289563198,5.42456686,114620.0,114610.0,0.17450485]
[1760289563508,0.75414986,114620.0,114610.0,0.17450485]
[1760289563702,4.91007725,114620.0,114610.0,0.17450485]
[1760289563927,4.90807725,114620.0,114610.0,0.17450485]
[1760289564151,5.42256686,114620.0,114610.0,0.17450485]
[1760289564759,5.24807725,114620.0,114610.0,0.17450485]
[1760289564911,5.42256686,114620.0,114610.0,0.17450485]
[1760289565114,5.42256686,114620.0,114610.0,1e-08]
[1760289565314,5.5112862,114620.0,114610.0,1e-08]
[1760289566359,5.5414381,114620.0,114610.0,1e-08]
[1760289567278,5.5424381,114620.0,114610.0,1e-08]
[1760289567495,5.69353708,114620.0,114610.0,1e-08]
[1760289568349,5.71226769,114620.0,114610.0,1e-08]
[1760289568564,1.04185069,114620.0,114610.0,1e-08]
[1760289568773,5.764065,114620.0,114610.0,1e-08]
[1760289568987,5.21511943,114580.0,114570.0,0.04192]
[1760289569204,5.41176198,114580.0,114570.0,0.04192]
[1760289569407,5.56713198,114580.0,114570.0,0.04192]
[1760289569618,5.53698008,114580.0,114570.0,0.04192]
[1760289569828,5.56713198,114580.0,114570.0,0.04192]
[1760289570267,0.51461148,114540.0,114530.0,0.04428848]
[1760289570488,5.24084115,114540.0,114530.0,0.04428848]
[1760289570689,0.72673415,114540.0,114530.0,0.04428848]
[1760289570902,5.45084945,114540.0,114530.0,0.04428848]
[1760289571100,0.78043245,114540.0,114530.0,0.04428848]
[1760289571306,0.86915179,114540.0,114530.0,0.04428848]
[1760289571513,5.53969904,114540.0,114530.0,0.04428848]
[1760289571718,5.56905094,114540.0,114530.0,0.04428848]
[1760289572155,5.54161883,114540.0,114530.0,0.04428848]
[1760289573170,0.87120183,114540.0,114530.0,0.04428848]
[1760289573372,5.54261883,114540.0,114530.0,0.04428848]
[1760289573576,5.45289949,114540.0,114530.0,0.04428848]
[1760289573988,5.45389949,114540.0,114530.0,0.04428848]
[1760289574389,5.45489949,114540.0,114530.0,0.04428848]
[1760289575029,0.78448249,114540.0,114530.0,0.04428848]
[1760289575234,6.45489949,114540.0,114530.0,0.04428848]
[1760289575445,6.54361883,114540.0,114530.0,0.04970926]
[1760289576074,1.87320183,114540.0,114530.0,0.04970926]
[1760289576276,6.54361883,114540.0,114530.0,0.04970926]
[1760289576683,6.45489949,114540.0,114530.0,0.04970926]
[1760289577106,1.58051911,114540.0,114530.0,0.22433599]
[1760289577314,1.75513059,114540.0,114530.0,0.22433599]
[1760289578201,1.58051911,114540.0,114530.0,0.22433599]
[1760289578430,1.75513059,114540.0,114530.0,0.22433599]
[1760289578637,1.84384993,114540.0,114530.0,0.22433599]
[1760289578839,1.58051911,114540.0,114530.0,0.22433599]
[1760289580032,0.5977606,114540.0,114530.0,0.41925599]
[1760289582728,0.5977606,114540.0,114530.0,0.68118599]
[1760289583579,0.5977606,114540.0,114530.0,0.68318599]
[1760289586993,0.5977606,114540.0,114530.0,0.67510599]
[1760289593634,0.5977606,114540.0,114530.0,1.43930714]
[1760289593635,0.20385583,114540.0,114530.0,1.43930714]
[1760289593844,1e-08,114540.0,114530.0,2.02398854]
[1760289595092,1e-08,114540.0,114530.0,2.02198854]
[1760289595543,1e-08,114540.0,114530.0,2.02398854]
[1760289595910,1e-08,114540.0,114530.0,2.02198854]
[1760289596121,1e-08,114540.0,114530.0,2.02398854]
[1760289596320,1e-08,114540.0,114530.0,2.02698854]
[1760289596981,1e-08,114540.0,114530.0,1.26278739]
[1760289597193,1e-08,114540.0,114530.0,1.2377874]
[1760289597436,1e-08,114540.0,114530.0,2.00198855]
[1760289600162,1e-08,114540.0,114530.0,2.02698854]
[1760289600575,1e-08,114540.0,114530.0,1.26278739]
[1760289600789,1e-08,114540.0,114530.0,2.02698854]
[1760289601208,1e-08,114540.0,114530.0,1.13778741]
[1760289601411,1e-08,114540.0,114530.0,0.79778741]
[1760289601621,1e-08,114540.0,114530.0,0.76763551]
[1760289602040,1e-08,114540.0,114530.0,0.67810599]
[1760289602248,1e-08,114540.0,114530.0,0.67510599]
[1760289602490,1e-08,114540.0,114530.0,0.67778599]
[1760289602878,1e-08,114540.0,114530.0,0.67978599]
[1760289603088,1e-08,114540.0,114530.0,0.67778599]
[1760289603303,1e-08,114540.0,114530.0,0.67878599]
[1760289603730,1e-08,114540.0,114530.0,0.67578599]
[1760289603933,1e-08,114540.0,114530.0,0.67678599]
[1760289604359,1e-08,114540.0,114530.0,0.67878599]
[1760289604772,1e-08,114540.0,114530.0,0.67678599]
[1760289605023,1e-08,114540.0,114530.0,0.67778599]
[1760289609236,1e-08,114540.0,114530.0,0.57994599]
[1760289609450,0.11864484,114540.0,114530.0,0.57994599]
[1760289609902,0.38459632,114540.0,114530.0,0.30585]
[1760289610132,5.09822846,114540.0,114530.0,0.30585]
[1760289610355,5.05501332,114540.0,114530.0,0.30385]
[1760289610571,5.05501332,114540.0,114530.0,0.30485]
[1760289610798,5.39501332,114540.0,114530.0,0.30585]
[1760289611236,5.39501332,114540.0,114530.0,0.30485]
[1760289611237,5.45259733,114540.0,114530.0,0.30485]
[1760289611487,5.54131667,114540.0,114530.0,0.30485]
[1760289611695,5.48373266,114540.0,114530.0,0.30485]
[1760289611901,0.81331566,114540.0,114530.0,0.30385]
[1760289612120,5.48373266,114540.0,114530.0,0.30385]
[1760289612326,5.48473266,114540.0,114530.0,0.30385]
[1760289612714,5.51588456,114540.0,114530.0,0.30385]
[1760289612964,0.54477863,114530.0,114520.0,0.0004]
[1760289613173,5.36181038,114530.0,114520.0,0.0004]
[1760289613380,5.54154249,114530.0,114520.0,0.0004]
[1760289613802,0.87112549,114530.0,114520.0,0.0004]
[1760289614028,0.17464198,114520.0,114510.0,0.0004]
[1760289614238,0.17464198,114520.0,114490.0,0.04232]
[1760289614239,5.18508948,114500.0,114490.0,0.04232]
[1760289614445,5.39734944,114500.0,114490.0,0.04232]
[1760289614651,5.42478155,114500.0,114490.0,0.04232]
[1760289614857,5.39734944,114500.0,114490.0,0.04232]
[1760289615494,5.39734944,114500.0,114490.0,0.30483798]
[1760289615927,5.39834944,114500.0,114490.0,0.30483798]
[1760289616556,5.48706876,114500.0,114490.0,0.30483798]
[1760289616765,5.39834944,114500.0,114490.0,0.30483798]
[1760289617967,0.21325996,114500.0,114490.0,0.47952572]
[1760289618174,0.13010438,114500.0,114490.0,0.47952572]
[1760289618383,0.38793244,114500.0,114490.0,0.47952572]
[1760289618808,0.38693244,114500.0,114490.0,0.47952572]
[1760289619020,0.21225996,114500.0,114490.0,0.47952572]
[1760289619231,0.21225996,114500.0,114490.0,0.48177342]
[1760289620945,0.0468,114510.0,114500.0,0.17467248]
[1760289621160,0.11977856,114510.0,114500.0,0.53627248]
[1760289621388,0.39807856,114510.0,114500.0,0.53627248]
[1760289621600,0.45977856,114510.0,114500.0,0.53627248]
[1760289622020,0.35127856,114510.0,114500.0,0.53627248]
[1760289622445,0.41221856,114510.0,114500.0,0.53627248]
[1760289623125,0.35127856,114510.0,114500.0,0.53627248]
[1760289623359,0.23091206,114540.0,114530.0,0.17462673]
[1760289623360,0.50000001,114540.0,114530.0,0.17462673]
[1760289623600,0.01013484,114540.0,114530.0,0.53615673]
[1760289623813,0.01013484,114540.0,114530.0,0.63399673]
[1760289624459,0.11864484,114540.0,114530.0,0.53615673]
[1760289624670,0.11864484,114540.0,114530.0,0.53665471]
[1760289625508,0.01013484,114540.0,114530.0,0.63449471]
[1760289625726,5.4007838,114540.0,114530.0,0.26243798]
[1760289625931,5.4007838,114540.0,114530.0,0.26343798]
[1760289626554,0.7303668,114540.0,114530.0,0.26243798]
[1760289626771,0.7303668,114540.0,114530.0,0.43706471]
[1760289626772,5.39501332,114540.0,114530.0,0.43706471]
[1760289627382,5.22040184,114540.0,114530.0,0.43706471]
[1760289627793,5.12906184,114540.0,114530.0,0.53715471]
[1760289627996,5.12906184,114540.0,114530.0,0.47290471]
[1760289628220,5.12906184,114540.0,114530.0,0.53715471]
[1760289628448,0.45864484,114540.0,114530.0,0.53715471]
[1760289629097,0.45864484,114540.0,114530.0,0.53815471]
[1760289629324,0.35013484,114540.0,114530.0,0.53815471]
[1760289629541,0.01013484,114540.0,114530.0,0.63599471]
[1760289629756,1e-08,114540.0,114530.0,1.18219582]
[1760289629969,1e-08,114540.0,114530.0,0.63599471]
[1760289632161,1e-08,114540.0,114530.0,1.18219582]
[1760289632379,1e-08,114540.0,114530.0,1.30187724]
[1760289633047,1e-08,114540.0,114530.0,0.75567613]
[1760289633252,1e-08,114540.0,114530.0,1.30087724]
[1760289633670,1e-08,114540.0,114530.0,1.30187724]
[1760289634566,1e-08,114540.0,114530.0,1.64187724]
[1760289634983,1e-08,114540.0,114530.0,1.64087724]
[1760289635389,1e-08,114540.0,114530.0,1.64287724]
[1760289635979,1e-08,114540.0,114530.0,1.64087724]
[1760289636332,1e-08,114540.0,114530.0,1.64287724]
[1760289636759,1e-08,114540.0,114530.0,1.09667613]
[1760289636967,1e-08,114540.0,114530.0,1.64287724]
[1760289639464,1e-08,114540.0,114530.0,1.76787722]
[1760289639668,1e-08,114570.0,114560.0,0.75093401]
[1760289639883,1e-08,114570.0,114560.0,1.24679401]
[1760289640100,1e-08,114570.0,114560.0,0.7005929]
[1760289640314,0.07162362,114590.0,114580.0,0.17455053]
[1760289640520,0.07162362,114590.0,114580.0,0.62895053]
[1760289640731,0.00429683,114600.0,114590.0,0.17453529]
[1760289640937,0.00429683,114600.0,114590.0,0.56362529]
[1760289641143,0.00429683,114600.0,114590.0,0.62840529]
[1760289641563,0.00429683,114600.0,114590.0,0.62855417]
[1760289642166,0.00429683,114600.0,114590.0,0.53660417]
[1760289643468,0.00429683,114600.0,114590.0,0.63063417]
[1760289643902,0.00429683,114600.0,114590.0,0.53660417]
[1760289644321,0.00429683,114600.0,114590.0,0.53760417]
[1760289644754,0.06481683,114600.0,114590.0,0.53760417]
[1760289644970,0.00429683,114600.0,114590.0,0.53760417]
[1760289645632,0.00429683,114600.0,114590.0,0.63163417]
[1760289646704,0.00429683,114600.0,114590.0,0.53760417]
[1760289646910,0.00429683,114600.0,114590.0,0.63163417]
[1760289647129,0.00429683,114600.0,114590.0,0.53760417]
[1760289647550,0.06481683,114600.0,114590.0,0.53760417]
[1760289647763,0.05002683,114600.0,114590.0,0.53760417]
[1760289648406,5.38699389,114600.0,114590.0,0.26294888]
[1760289649593,5.38699389,114600.0,114590.0,0.43748417]
[1760289650220,5.38699389,114600.0,114590.0,0.43648417]
[1760289650441,5.12096383,114600.0,114590.0,0.43648417]
[1760289650646,0.00429683,114600.0,114590.0,0.50203417]
[1760289650895,0.06481683,114600.0,114590.0,0.50203417]
[1760289651102,0.11054683,114600.0,114590.0,0.50203417]
[1760289651532,0.45054683,114600.0,114590.0,0.50203417]
[1760289651761,0.62506689,114600.0,114590.0,0.43648417]
[1760289651975,0.71657689,114600.0,114590.0,0.43648417]
[1760289653241,0.71657689,114600.0,114590.0,0.43748417]
[1760289653450,0.45054683,114600.0,114590.0,0.50303417]
[1760289654090,0.45054683,114600.0,114590.0,0.54495417]
[1760289654515,0.71657689,114600.0,114590.0,0.47940417]
[1760289654724,0.45054683,114600.0,114590.0,0.54495417]
[1760289654958,0.00429683,114600.0,114590.0,0.63898417]
[1760289655167,0.06481683,114600.0,114590.0,0.54495417]
[1760289655381,0.06481683,114600.0,114590.0,0.54395417]
[1760289655615,0.11054683,114600.0,114590.0,0.54295417]
[1760289656030,0.11054683,114600.0,114590.0,0.47740417]
[1760289656235,0.11054683,114600.0,114590.0,0.54295417]
[1760289656881,0.11054683,114600.0,114590.0,0.47740417]
[1760289657090,0.11054683,114600.0,114590.0,0.54295417]
[1760289657794,0.11054683,114600.0,114590.0,0.54395417]
[1760289661805,0.71611689,114600.0,114590.0,0.30386888]
[1760289662057,5.38653389,114600.0,114590.0,0.30386888]
[1760289662279,0.80483623,114600.0,114590.0,0.30386888]
[1760289662506,0.174581,114560.0,114550.0,0.03534]
[1760289662727,5.24412067,114560.0,114550.0,0.21701422]
[1760289662944,5.22111967,114560.0,114550.0,0.47889422]
[1760289663404,5.39570067,114560.0,114550.0,0.47889422]
[1760289663837,5.13036967,114560.0,114550.0,0.54172422]
[1760289664054,5.22111967,114560.0,114550.0,0.47989422]
[1760289664984,5.13036967,114560.0,114550.0,0.54172422]
[1760289665217,0.34937267,114560.0,114550.0,0.63875422]
[1760289665443,0.38575,114570.0,114560.0,0.174581]
[1760289665662,0.45557169,114570.0,114560.0,0.534121]
[1760289665876,0.00899169,114570.0,114560.0,0.631151]
[1760289666949,4.670417,114580.0,114570.0,0.17456576]
[1760289667176,0.00861077,114580.0,114570.0,0.53358576]
[1760289667624,0.20194077,114580.0,114570.0,0.43641576]
[1760289667842,0.21340738,114580.0,114570.0,0.26185]
[1760289668060,0.20194077,114580.0,114570.0,0.43641576]
[1760289668980,5.3869083,114580.0,114570.0,0.26185]
[1760289670130,5.44449231,114580.0,114570.0,0.26185]
[1760289670405,0.174581,114560.0,114550.0,0.04241798]
[1760289670619,0.174581,114560.0,114520.0,0.00056177]
[1760289670621,0.51462673,114530.0,114520.0,0.21712375]
[1760289670845,5.17336081,114530.0,114520.0,0.21712375]
[1760289671071,5.34798754,114530.0,114520.0,0.21712375]
[1760289671703,5.17336081,114530.0,114520.0,0.21712375]
[1760289671913,0.01101381,114530.0,114520.0,0.41840375]
[1760289672125,0.00049781,114530.0,114520.0,0.41840375]
[1760289673054,0.00049781,114530.0,114520.0,0.78855565]
[1760289673485,0.00049781,114530.0,114520.0,0.41840375]
[1760289673715,0.00049781,114530.0,114520.0,0.41940375]
[1760289673931,0.00049781,114530.0,114520.0,0.68135375]
[1760289674150,0.00049781,114530.0,114520.0,0.68035375]
[1760289674572,0.00049781,114530.0,114520.0,0.68135375]
[1760289675432,0.16234381,114530.0,114520.0,0.48007375]
[1760289676072,0.16234381,114530.0,114520.0,0.47907375]
[1760289676953,0.07129381,114530.0,114520.0,0.47907375]
[1760289678223,0.16192381,114530.0,114520.0,0.47907375]
[1760289678671,0.23455363,114530.0,114520.0,0.47907375]
[1760289678882,0.16192381,114530.0,114520.0,0.47907375]
[1760289679316,0.06037381,114530.0,114520.0,0.54090375]
[1760289679532,0.07209381,114530.0,114520.0,0.58332375]
[1760289679755,0.06037381,114530.0,114520.0,0.58332375]
[1760289679998,0.01101381,114530.0,114520.0,0.68035375]
[1760289680676,0.01101381,114530.0,114520.0,0.58332375]
[1760289680882,0.02193381,114530.0,114520.0,0.58332375]
[1760289681528,0.64248751,114540.0,114530.0,0.17462673]
[1760289681736,0.67571914,114540.0,114530.0,0.17477565]
[1760289681945,0.65419751,114540.0,114530.0,0.43671565]
[1760289682794,5.32461451,114540.0,114530.0,0.43671565]
[1760289683001,5.32461451,114540.0,114530.0,0.26208892]
[1760289683208,5.32461451,114540.0,114530.0,0.43671565]
[1760289683828,5.15000237,114540.0,114530.0,0.43671565]
[1760289684039,0.35171,114540.0,114530.0,0.54004565]
[1760289684279,0.52632148,114540.0,114530.0,0.54004565]
[1760289684509,0.64129148,114540.0,114530.0,0.43671565]
[1760289685543,0.70145458,114540.0,114530.0,0.43671565]
[1760289685750,0.64129148,114540.0,114530.0,0.43671565]
[1760289686404,0.34,114540.0,114530.0,0.49354565]
[1760289686610,4.720167,114550.0,114540.0,0.17461148]
[1760289686817,4.720937,114550.0,114540.0,0.17461148]
[1760289687042,4.720937,114550.0,114540.0,0.26677]
[1760289687043,4.97182324,114550.0,114540.0,0.26677]
[1760289687924,5.40054258,114550.0,114540.0,0.26677]
[1760289688139,5.31182324,114550.0,114540.0,0.26677]
[1760289688585,5.31182324,114550.0,114520.0,0.00056177]
[1760289688586,0.54477863,114530.0,114520.0,0.00056177]
[1760289688821,0.54477863,114530.0,114490.0,0.0004]
[1760289688822,0.17467248,114500.0,114490.0,0.0004]
[1760289689023,4.93054948,114500.0,114490.0,0.00089781]
[1760289689239,5.02117948,114500.0,114490.0,0.26291781]
[1760289689444,5.02117948,114500.0,114490.0,0.26460367]
[1760289691488,5.03568123,114500.0,114490.0,0.26460367]
[1760289691872,5.02117948,114500.0,114490.0,0.26460367]
[1760289692251,5.02980653,114500.0,114490.0,0.26460367]
[1760289694198,5.02980653,114500.0,114490.0,0.43929141]
[1760289694405,5.02980653,114500.0,114490.0,0.26460367]
[1760289695051,4.670417,114510.0,114490.0,0.64724579]
[1760289695308,0.04929,114500.0,114490.0,0.26291781]
[1760289695526,0.1453,114500.0,114490.0,0.43760555]
[1760289695969,0.38926,114510.0,114500.0,0.17467248]
[1760289696191,0.39025,114510.0,114500.0,0.47818248]
[1760289696414,5.33038423,114510.0,114500.0,0.26201]
[1760289696642,5.24444634,114510.0,114500.0,0.43668248]
[1760289697085,5.155727,114510.0,114500.0,0.43668248]
[1760289697302,0.05025,114510.0,114500.0,0.43668248]
[1760289697518,0.22490723,114510.0,114500.0,0.43668248]
[1760289697731,0.14531,114510.0,114500.0,0.43668248]
[1760289698164,0.05025,114510.0,114500.0,0.53827248]
[1760289698715,0.04963,114530.0,114510.0,0.17465723]
[1760289698915,0.04963,114530.0,114520.0,0.28335198]
[1760289699177,0.38963,114530.0,114520.0,0.54531198]
[1760289699361,0.04963,114530.0,114520.0,0.54531198]
[1760289699679,0.38963,114530.0,114520.0,0.54531198]
[1760289700632,0.5316,114550.0,114530.0,0.17462673]
[1760289700840,4.670417,114550.0,114540.0,0.42195148]
[1760289701045,4.670417,114550.0,114540.0,0.68387148]
[1760289701679,0.60386362,114580.0,114560.0,0.174581]
[1760289701888,0.60386362,114580.0,114560.0,0.576541]
[1760289701889,4.670417,114570.0,114560.0,0.576541]
[1760289702103,4.670417,114570.0,114560.0,0.642791]
[1760289703995,0.37224,114580.0,114570.0,0.17456576]
[1760289704213,0.05355738,114590.0,114580.0,0.17455053]
[1760289704427,0.00429738,114590.0,114580.0,0.64176053]
[1760289705594,0.00429738,114590.0,114580.0,0.64190966]
[1760289705800,0.00429738,114590.0,114580.0,0.54427966]
[1760289706622,0.00429738,114590.0,114580.0,0.63745966]
[1760289709011,0.00429738,114590.0,114580.0,1.52293036]
[1760289709012,1e-08,114590.0,114580.0,1.52293036]
[1760289709625,1e-08,114590.0,114580.0,1.86293036]
[1760289711259,1e-08,114590.0,114580.0,1.88793035]
[1760289711462,1e-08,114590.0,114580.0,1.98793034]
[1760289714456,1e-08,114590.0,114580.0,1.19714107]
[1760289714665,1e-08,114590.0,114580.0,1.98793034]
[1760289715767,1e-08,114590.0,114580.0,1.88793035]
[1760289715912,1e-08,114590.0,114580.0,0.63745966]
[1760289716807,1e-08,114590.0,114580.0,0.66761156]
[1760289719968,0.05012001,114590.0,114580.0,0.47802966]
[1760289720354,1e-08,114590.0,114580.0,0.54234966]
[1760289723002,1e-08,114590.0,114580.0,0.63246966]
[1760289723218,1e-08,114590.0,114580.0,1.51794036]
[1760289723440,1e-08,114590.0,114580.0,1.09215108]
[1760289724106,1e-08,114590.0,114580.0,0.75215108]
[1760289724563,1e-08,114590.0,114580.0,1.85794036]
[1760289724996,1e-08,114590.0,114580.0,1.09315108]
[1760289725520,1e-08,114590.0,114580.0,1.09215108]
[1760289725768,1e-08,114590.0,114580.0,1.13407108]
[1760289725969,1e-08,114590.0,114580.0,1.13507108]
[1760289726407,1e-08,114590.0,114580.0,0.67538966]
[1760289726627,1e-08,114590.0,114580.0,0.58526966]
[1760289727048,1e-08,114590.0,114580.0,0.67538966]
[1760289728350,1e-08,114590.0,114580.0,0.67438966]
[1760289728556,1e-08,114590.0,114580.0,0.67538966]
[1760289728970,1e-08,114590.0,114580.0,0.67438966]
[1760289729400,1e-08,114590.0,114580.0,0.67538966]
[1760289730502,1e-08,114590.0,114580.0,1.56086036]
[1760289731355,1e-08,114590.0,114580.0,0.79507108]
[1760289733969,1e-08,114590.0,114580.0,0.67538966]
[1760289734207,0.2236353,114590.0,114580.0,0.52094966]
[1760289734430,0.2236353,114590.0,114580.0,0.47944966]
[1760289734431,0.14636001,114590.0,114580.0,0.47944966]
[1760289734663,0.04910001,114590.0,114580.0,0.47944966]
[1760289735089,0.2236353,114590.0,114580.0,0.47944966]
[1760289735298,0.2236353,114590.0,114580.0,0.47844966]
[1760289735506,0.04910001,114590.0,114580.0,0.47944966]
[1760289735940,0.04910001,114590.0,114580.0,0.47844966]
[1760289736152,0.2236353,114590.0,114580.0,0.47844966]
[1760289736362,0.3208953,114590.0,114580.0,0.47844966]
[1760289737195,0.14636001,114590.0,114580.0,0.47844966]
[1760289737848,0.3208953,114590.0,114580.0,0.47844966]
[1760289738478,0.14636001,114590.0,114580.0,0.47844966]
[1760289738690,0.04910001,114590.0,114580.0,0.47844966]
[1760289739124,0.14636001,114590.0,114580.0,0.47844966]
[1760289739344,0.04910001,114590.0,114580.0,0.47844966]
[1760289739603,1e-08,114590.0,114580.0,0.58426966]
[1760289739817,1e-08,114590.0,114580.0,0.67438966]
[1760289741171,1e-08,114590.0,114580.0,0.67538966]
[1760289743313,1e-08,114590.0,114580.0,1.34064843]
[1760289744148,1e-08,114590.0,114580.0,0.79507108]
[1760289746482,1e-08,114590.0,114580.0,1.34064843]
[1760289746688,1e-08,114590.0,114580.0,1.68064843]
[1760289747946,1e-08,114590.0,114580.0,1.13507108]
[1760289748153,1e-08,114590.0,114580.0,1.68064843]
[1760289750857,1e-08,114590.0,114580.0,1.68056236]
[1760289755737,0.5,114620.0,114600.0,0.17452006]
[1760289755946,0.5,114620.0,114610.0,0.27845484]
[1760289756192,0.5,114620.0,114610.0,0.63577484]
[1760289758815,0.5,114620.0,114610.0,1.21150409]
[1760289759024,0.5,114620.0,114610.0,1.30103361]
[1760289759654,0.5,114620.0,114610.0,1.30203361]
[1760289759886,0.08907837,114620.0,114610.0,1.30203361]
[1760289761955,0.45938362,114660.0,114650.0,0.17444395]
[1760289762171,0.46035362,114660.0,114650.0,0.54197395]
[1760289762614,0.38873,114660.0,114650.0,0.54197395]
[1760289762826,0.38873,114660.0,114650.0,0.58206395]
[1760289763035,0.39746639,114660.0,114650.0,0.58206395]
[1760289763242,0.39799501,114660.0,114650.0,0.58206395]
[1760289763450,0.39896501,114660.0,114650.0,0.58206395]
[1760289763921,0.39996501,114660.0,114650.0,0.58206395]
[1760289764124,0.39899501,114660.0,114650.0,0.58206395]
[1760289764335,0.35143501,114660.0,114650.0,0.58206395]
[1760289764561,0.00269862,114660.0,114650.0,0.67448395]
[1760289764774,0.00169862,114660.0,114650.0,0.67448395]
[1760289764999,0.00069862,114660.0,114650.0,0.67448395]